fUST/lending_fUST_20240714
["ID","MTS","AMOUNT","RATE_DAILY","PERIOD"]
[331954056,1720894246251,-500.0,0.00024931,2]
[331954058,1720894246261,-594.92214477,0.00024931,2]
[331954060,1720894246270,-500.0,0.00024931,2]
[331954061,1720894246280,-500.0,0.00024931,2]
[331954062,1720894246289,-500.0,0.00024931,2]
[331954063,1720894246298,-500.0,0.00024931,2]
[331954064,1720894246307,-500.0,0.00024931,2]
[331954065,1720894246319,-500.0,0.00024931,2]
[331954066,1720894246330,-673.59,0.00024931,2]
[331954067,1720894246340,-500.0,0.00024931,2]
[331954069,1720894246351,-500.0,0.00024931,2]
[331954071,1720894246361,-500.0,0.00024931,2]
[331954072,1720894246370,-500.0,0.00024931,2]
[331954074,1720894246380,-500.0,0.00024931,2]
[331954075,1720894246389,-500.0,0.00024931,2]
[331954076,1720894246401,-500.0,0.00024931,2]
[331954077,1720894246412,-500.0,0.00024931,2]
[331954078,1720894246423,-500.0,0.00024931,2]
[331954079,1720894246433,-500.0,0.00024931,2]
[331954080,1720894246444,-540.61134251,0.00024931,2]
[331954081,1720894246453,-500.0,0.00024931,2]
[331954082,1720894246463,-500.0,0.00024931,2]
[331954083,1720894246473,-500.0,0.00024931,2]
[331954084,1720894246482,-624.10402067,0.00024931,2]
[331954085,1720894246491,-500.0,0.00024931,2]
[331954086,1720894246501,-502.98313239,0.00024931,2]
[331954087,1720894246512,-500.0,0.00024931,2]
[331954088,1720894246523,-500.0,0.00024931,2]
[331954089,1720894246533,-500.0,0.00024931,2]
[331954090,1720894246545,-500.0,0.00024931,2]
[331954091,1720894246555,-500.0,0.00024931,2]
[331954092,1720894246565,-500.0,0.00024931,2]
[331954093,1720894246574,-500.0,0.00024931,2]
[331954094,1720894246584,-500.0,0.00024931,2]
[331954095,1720894246596,-500.0,0.00024931,2]
[331954096,1720894246607,-500.0,0.00024931,2]
[331954097,1720894246618,-500.0,0.00024931,2]
[331954098,1720894246629,-500.0,0.00024931,2]
[331954099,1720894246639,-500.0,0.00024931,2]
[331954100,1720894246654,-500.0,0.00024931,2]
[331954101,1720894246664,-500.0,0.00024931,2]
[331954102,1720894246673,-500.0,0.00024931,2]
[331954103,1720894246684,-500.0,0.00024931,2]
[331954104,1720894246693,-500.0,0.00024931,2]
[331954105,1720894246703,-500.0,0.00024931,2]
[331954106,1720894246712,-500.0,0.00024931,2]
[331954107,1720894246722,-526.61279648,0.00024931,2]
[331954108,1720894246731,-500.0,0.00024931,2]
[331954109,1720894246741,-500.0,0.00024931,2]
[331954110,1720894246755,-500.0,0.00024931,2]
[331954111,1720894246765,-500.0,0.00024931,2]
[331954112,1720894246775,-289.99420105,0.00024931,2]
[331954113,1720894246784,-548.58,0.00024931,2]
[331954114,1720894246796,-10718.61,0.00024931,2]
[331954115,1720894246806,-500.0,0.00024931,2]
[331954116,1720894246815,-505.27746407,0.00024931,2]
[331954117,1720894246827,-500.0,0.00024931,2]
[331954118,1720894246839,-500.0,0.00024931,2]
[331954119,1720894246849,-500.0,0.00024931,2]
[331954120,1720894246858,-500.0,0.00024931,2]
[331954121,1720894246867,-325.09363436,0.00024931,2]
[331954122,1720894246877,-500.0,0.00024931,2]
[331954123,1720894246887,-500.0,0.00024931,2]
[331954124,1720894246898,-500.0,0.00024931,2]
[331954125,1720894246910,-500.0,0.00024931,2]
[331954127,1720894246921,-500.0,0.00024931,2]
[331954129,1720894246933,-1735.23,0.00024931,2]
[331954131,1720894246942,-500.0,0.00024931,2]
[331954132,1720894246952,-481.53405331,0.00024931,2]
[331954133,1720894246962,-500.0,0.00024931,2]
[331954134,1720894246971,-500.0,0.00024931,2]
[331954135,1720894246982,-517.04,0.00024931,2]
[331954136,1720894246993,-500.0,0.00024931,2]
[331954137,1720894247004,-500.0,0.00024931,2]
[331954138,1720894247014,-500.0,0.00024931,2]
[331954139,1720894247025,-500.0,0.00024931,2]
[331954140,1720894247037,-500.0,0.00024931,2]
[331954141,1720894247049,-581.01,0.00024931,2]
[331954142,1720894247061,-500.0,0.00024931,2]
[331954143,1720894247070,-500.0,0.00024931,2]
[331954144,1720894247080,-942.56,0.00024931,2]
[331954145,1720894247090,-500.0,0.00024931,2]
[331954146,1720894247099,-500.0,0.00024931,2]
[331954147,1720894247109,-500.0,0.00024931,2]
[331954148,1720894247119,-500.0,0.00024931,2]
[331954149,1720894247211,-500.0,0.00024931,2]
[331954150,1720894247232,-500.0,0.00024931,2]
[331954151,1720894247242,-500.0,0.00024931,2]
[331954152,1720894247253,-500.0,0.00024931,2]
[331954153,1720894247263,-500.0,0.00024931,2]
[331954154,1720894247273,-500.0,0.00024931,2]
[331954155,1720894247282,-500.0,0.00024931,2]
[331954156,1720894247292,-642.78,0.00024931,2]
[331954157,1720894247302,-500.0,0.00024931,2]
[331954158,1720894247312,-232.41212575,0.00024931,2]
[331954159,1720894247323,-500.0,0.00024931,2]
[331954160,1720894247334,-502.88199298,0.00024931,2]
[331954161,1720894247343,-500.0,0.00024931,2]
[331954162,1720894247355,-500.0,0.00024931,2]
[331954163,1720894247365,-500.0,0.00024931,2]
[331954164,1720894247374,-166.2105848,0.00024931,2]
[331954165,1720894247384,-200.5,0.00024931,2]
[331954166,1720894247395,-500.0,0.00024931,2]
[331954167,1720894247404,-500.0,0.00024931,2]
[331954168,1720894247415,-522.18691331,0.00024931,2]
[331954169,1720894247425,-500.0,0.00024931,2]
[331954170,1720894247435,-500.0,0.00024931,2]
[331954171,1720894247446,-500.0,0.00024931,2]
[331954172,1720894247455,-171.92895693,0.00024931,2]
[331954173,1720894247466,-336.14411734,0.00024931,2]
[331954174,1720894247476,-500.0,0.00024931,2]
[331954175,1720894247485,-1462.44424016,0.00024968,2]
[331954176,1720894247499,-225.11509687,0.00025,2]
[331954177,1720894247510,-1000.0,0.00025,25]
[331954178,1720894247518,-351.15261588,0.00025,2]
[331954179,1720894247528,-1462.44424016,0.00025105,2]
[331954180,1720894247538,-500.0,0.00025205,2]
[331954181,1720894247547,-330.60897548,0.00025205,2]
[331954182,1720894247556,-500.0,0.00025205,2]
[331954183,1720894247566,-500.0,0.00025205,2]
[331954184,1720894247575,-567.71,0.00025205,2]
[331954185,1720894247584,-500.0,0.00025205,2]
[331954186,1720894247594,-500.0,0.00025205,2]
[331954187,1720894247605,-629.55,0.00025205,2]
[331954188,1720894247615,-519.79439589,0.00025205,2]
[331954189,1720894247625,-500.0,0.00025205,2]
[331954190,1720894247635,-521.5,0.00025205,2]
[331954191,1720894247646,-500.0,0.00025205,2]
[331954192,1720894247655,-500.0,0.00025205,2]
[331954193,1720894247664,-500.0,0.00025205,2]
[331954194,1720894247673,-500.0,0.00025205,2]
[331954195,1720894247682,-1500.0,0.00025205,2]
[331954196,1720894247692,-500.0,0.00025205,2]
[331954197,1720894247701,-500.0,0.00025205,2]
[331954198,1720894247710,-187.61393697,0.00025205,2]
[331954199,1720894247718,-500.0,0.00025205,2]
[331954200,1720894247727,-528.11,0.00025205,2]
[331954201,1720894247738,-500.0,0.00025205,2]
[331954202,1720894247753,-587.98,0.00025205,2]
[331954203,1720894247764,-500.0,0.00025205,2]
[331954204,1720894247774,-500.0,0.00025205,2]
[331954205,1720894247787,-500.0,0.00025205,2]
[331954206,1720894247796,-1325.4,0.00025205,2]
[331954207,1720894247807,-500.0,0.00025205,2]
[331954208,1720894247817,-500.0,0.00025205,2]
[331954209,1720894247828,-571.91,0.00025205,2]
[331954210,1720894247838,-500.0,0.00025205,2]
[331954211,1720894247847,-500.0,0.00025205,2]
[331954212,1720894247856,-500.0,0.00025205,2]
[331954213,1720894247866,-500.0,0.00025205,2]
[331954214,1720894247875,-500.0,0.00025205,2]
[331954215,1720894247885,-500.0,0.00025205,2]
[331954216,1720894247894,-500.0,0.00025205,2]
[331954217,1720894247904,-500.0,0.00025205,2]
[331954218,1720894247913,-500.0,0.00025205,2]
[331954219,1720894247922,-500.0,0.00025205,2]
[331954220,1720894247932,-500.0,0.00025205,2]
[331954221,1720894247942,-500.0,0.00025205,2]
[331954222,1720894247951,-500.0,0.00025205,2]
[331954223,1720894247960,-579.27837627,0.00025205,2]
[331954224,1720894247970,-500.0,0.00025205,2]
[331954225,1720894247979,-500.0,0.00025205,2]
[331954226,1720894247989,-500.0,0.00025205,2]
[331954227,1720894247998,-500.0,0.00025205,2]
[331954228,1720894248008,-500.0,0.00025205,2]
[331954229,1720894248018,-500.0,0.00025205,2]
[331954230,1720894248027,-500.0,0.00025205,2]
[331954231,1720894248037,-673.59,0.00025205,2]
[331954232,1720894248046,-500.0,0.00025205,2]
[331954233,1720894248056,-500.0,0.00025205,2]
[331954234,1720894248065,-500.0,0.00025205,2]
[331954235,1720894248075,-500.0,0.00025205,2]
[331954236,1720894248085,-500.0,0.00025205,2]
[331954237,1720894248095,-500.0,0.00025205,2]
[331954238,1720894248105,-500.0,0.00025205,2]
[331954239,1720894248115,-500.0,0.00025205,2]
[331954240,1720894248124,-513.36926385,0.00025205,2]
[331954241,1720894248133,-500.0,0.00025205,2]
[331954242,1720894248143,-500.0,0.00025205,2]
[331954243,1720894248152,-500.0,0.00025205,2]
[331954244,1720894248161,-500.0,0.00025205,2]
[331954245,1720894248171,-500.0,0.00025205,2]
[331954246,1720894248180,-500.0,0.00025205,2]
[331954247,1720894248190,-500.0,0.00025205,2]
[331954248,1720894248199,-500.0,0.00025205,2]
[331954249,1720894248208,-500.0,0.00025205,2]
[331954250,1720894248217,-500.0,0.00025205,2]
[331954251,1720894248227,-500.0,0.00025205,2]
[331954252,1720894248236,-10718.61,0.00025205,2]
[331954253,1720894248245,-500.0,0.00025205,2]
[331954254,1720894248255,-500.0,0.00025205,2]
[331954255,1720894248265,-500.0,0.00025205,2]
[331954256,1720894248274,-500.0,0.00025205,2]
[331954257,1720894248284,-505.70266163,0.00025205,2]
[331954258,1720894248293,-1735.23,0.00025205,2]
[331954259,1720894248304,-500.0,0.00025205,2]
[331954260,1720894248313,-500.0,0.00025205,2]
[331954261,1720894248323,-565.54667167,0.00025205,2]
[331954262,1720894248332,-500.0,0.00025205,2]
[331954263,1720894248342,-500.0,0.00025205,2]
[331954264,1720894248351,-500.0,0.00025205,2]
[331954265,1720894248361,-500.0,0.00025205,2]
[331954266,1720894248371,-581.01,0.00025205,2]
[331954267,1720894248381,-500.0,0.00025205,2]
[331954268,1720894248390,-500.0,0.00025205,2]
[331954269,1720894248401,-942.56,0.00025205,2]
[331954270,1720894248411,-500.0,0.00025205,2]
[331954271,1720894248421,-500.0,0.00025205,2]
[331954272,1720894248431,-500.0,0.00025205,2]
[331954273,1720894248441,-408.19251566,0.00025205,2]
[331954274,1720894248450,-360.24014546,0.00025205,2]
[331954275,1720894248460,-500.0,0.00025205,2]
[331954276,1720894248469,-500.0,0.00025205,2]
[331954277,1720894248478,-500.0,0.00025205,2]
[331954278,1720894248488,-500.0,0.00025205,2]
[331954279,1720894248497,-567.81,0.00025205,2]
[331954280,1720894248506,-500.0,0.00025205,2]
[331954281,1720894248516,-500.0,0.00025205,2]
[331954282,1720894248526,-500.0,0.00025205,2]
[331954283,1720894248535,-500.0,0.00025205,2]
[331954284,1720894248545,-500.0,0.00025205,2]
[331954285,1720894248554,-401.99640859,0.00025205,2]
[331954286,1720894248563,-547.90379251,0.00025205,2]
[331954287,1720894248573,-500.0,0.00025479,2]
[331954288,1720894248582,-518.0647578,0.00025479,2]
[331954289,1720894248591,-515.81,0.00025479,2]
[331954290,1720894248600,-506.62355173,0.00025479,2]
[331954291,1720894248610,-500.0,0.00025479,2]
[331954292,1720894248619,-500.0,0.00025479,2]
[331954293,1720894248629,-500.0,0.00025479,2]
[331954294,1720894248639,-500.0,0.00025479,2]
[331954295,1720894248648,-500.0,0.00025479,2]
[331954296,1720894248658,-500.0,0.00025479,2]
[331954297,1720894248667,-500.0,0.00025479,2]
[331954298,1720894248677,-1325.4,0.00025479,2]
[331954299,1720894248686,-500.0,0.00025479,2]
[331954300,1720894248695,-500.0,0.00025479,2]
[331954301,1720894248704,-500.0,0.00025479,2]
[331954302,1720894248713,-500.0,0.00025479,2]
[331954303,1720894248722,-500.0,0.00025479,2]
[331954304,1720894248731,-534.88,0.00025479,2]
[331954305,1720894248743,-508.98,0.00025479,2]
[331954306,1720894248754,-595.02,0.00025479,2]
[331954307,1720894248764,-500.0,0.00025479,2]
[331954308,1720894248773,-500.0,0.00025479,2]
[331954309,1720894248784,-500.0,0.00025479,2]
[331954310,1720894248793,-643.75,0.00025479,2]
[331954311,1720894248803,-500.0,0.00025479,2]
[331954312,1720894248812,-500.0,0.00025479,2]
[331954313,1720894248823,-673.59,0.00025479,2]
[331954314,1720894248832,-500.0,0.00025479,2]
[331954315,1720894248842,-500.0,0.00025479,2]
[331954316,1720894248852,-334.28,0.00025479,2]
[331954317,1720894248862,-500.0,0.00025479,2]
[331954318,1720894248872,-594.99,0.00025479,2]
[331954319,1720894248881,-500.0,0.00025479,2]
[331954320,1720894248891,-500.0,0.00025479,2]
[331954321,1720894248902,-523.54,0.00025479,2]
[331954322,1720894248911,-500.0,0.00025479,2]
[331954323,1720894248921,-10718.61,0.00025479,2]
[331954324,1720894248931,-562.11,0.00025479,2]
[331954325,1720894248940,-500.0,0.00025479,2]
[331954326,1720894248950,-1735.23,0.00025479,2]
[331954327,1720894248960,-500.0,0.00025479,2]
[331954328,1720894248969,-575.2,0.00025479,2]
[331954329,1720894248980,-514.88855043,0.00025479,2]
[331954330,1720894248989,-581.01,0.00025479,2]
[331954331,1720894248999,-500.0,0.00025479,2]
[331954332,1720894249008,-942.56,0.00025479,2]
[331954333,1720894249018,-500.0,0.00025479,2]
[331954334,1720894249027,-500.0,0.00025479,2]
[331954335,1720894249037,-500.0,0.00025479,2]
[331954336,1720894249046,-500.0,0.00025479,2]
[331954337,1720894249055,-500.0,0.00025479,2]
[331954338,1720894249065,-500.0,0.00025479,2]
[331954339,1720894249077,-500.0,0.00025479,2]
[331954340,1720894249088,-554.72,0.00025479,2]
[331954341,1720894249097,-174.5,0.00025551,2]
[331954342,1720894249106,-620.03311708,0.00025717,2]
[331954343,1720894249116,-500.0,0.00025753,2]
[331954344,1720894249126,-521.65316974,0.00025753,2]
[331954345,1720894249136,-500.0,0.00025753,2]
[331954346,1720894249145,-1325.4,0.00025753,2]
[331954347,1720894249154,-500.0,0.00025753,2]
[331954348,1720894249163,-487.94,0.00025753,2]
[331954349,1720894249172,-394.17672297,0.00025753,2]
[331954350,1720894249182,-234.54,0.00025753,2]
[331954351,1720894249191,-673.59,0.00025753,2]
[331954352,1720894249201,-197.43,0.00025753,2]
[331954353,1720894249211,-500.0,0.00025753,2]
[331954354,1720894249220,-500.0,0.00025753,2]
[331954355,1720894249230,-500.0,0.00025753,2]
[331954356,1720894249239,-500.0,0.00025753,2]
[331954357,1720894249249,-10718.61,0.00025753,2]
[331954358,1720894249259,-1735.23,0.00025753,2]
[331954359,1720894249268,-508.01643345,0.00025753,2]
[331954360,1720894249278,-581.01,0.00025753,2]
[331954361,1720894249288,-197.87,0.00025753,2]
[331954362,1720894249297,-942.56,0.00025753,2]
[331954363,1720894249306,-500.0,0.00025753,2]
[331954364,1720894249389,-500.0,0.00025753,2]
[331954365,1720894249400,-500.0,0.00026027,2]
[331954366,1720894249409,-1325.4,0.00026027,2]
[331954367,1720894249419,-500.0,0.00026027,2]
[331954368,1720894249428,-673.59,0.00026027,2]
[331954369,1720894249438,-500.0,0.00026027,2]
[331954370,1720894249448,-174.91,0.00026027,2]
[331954371,1720894249457,-500.0,0.00026027,2]
[331954372,1720894249466,-10718.61,0.00026027,2]
[331954373,1720894249476,-1735.23,0.00026027,2]
[331954374,1720894249485,-581.01,0.00026027,2]
[331954375,1720894249494,-942.56,0.00026027,2]
[331954376,1720894249503,-500.0,0.00026027,2]
[331954377,1720894249512,-167.21919922,0.000262,2]
[331954378,1720894249522,-500.0,0.00026301,2]
[331954379,1720894249531,-1325.4,0.00026301,2]
[331954380,1720894249541,-500.0,0.00026301,2]
[331954381,1720894249550,-673.59,0.00026301,2]
[331954382,1720894249560,-500.0,0.00026301,2]
[331954383,1720894249570,-500.0,0.00026301,2]
[331954384,1720894249579,-10718.61,0.00026301,2]
[331954385,1720894249588,-1735.23,0.00026301,2]
[331954386,1720894249598,-581.01,0.00026301,2]
[331954387,1720894249607,-942.56,0.00026301,2]
[331954388,1720894249617,-500.0,0.00026301,2]
[331954389,1720894249626,-152.76264877,0.0002631,2]
[331954390,1720894249635,-159.57839055,0.00026399,2]
[331954391,1720894249645,-2850.0,0.000265,2]
[331954392,1720894249654,-500.0,0.00026575,2]
[331954393,1720894249663,-1325.4,0.00026575,2]
[331954394,1720894249673,-500.0,0.00026575,2]
[331954395,1720894249683,-673.59,0.00026575,2]
[331954396,1720894249692,-500.0,0.00026575,2]
[331954397,1720894249702,-495.85,0.00026575,2]
[331954398,1720894249711,-10718.61,0.00026575,2]
[331954399,1720894249721,-1735.23,0.00026575,2]
[331954400,1720894249730,-581.01,0.00026575,2]
[331954401,1720894249741,-942.56,0.00026575,2]
[331954402,1720894249753,-500.0,0.00026575,2]
[331954403,1720894249762,-152.94115716,0.00026644,2]
[331954404,1720894249771,-174.5,0.00026646,2]
[331954405,1720894249781,-500.0,0.00026849,2]
[331954406,1720894249790,-1325.4,0.00026849,2]
[331954407,1720894249800,-500.0,0.00026849,2]
[331954408,1720894249809,-673.59,0.00026849,2]
[331954409,1720894249821,-500.0,0.00026849,2]
[331954410,1720894249830,-10718.61,0.00026849,2]
[331954411,1720894249840,-1735.23,0.00026849,2]
[331954412,1720894249850,-581.01,0.00026849,2]
[331954413,1720894249859,-942.56,0.00026849,2]
[331954414,1720894249869,-628.63,0.00026849,2]
[331954415,1720894249879,-197.7597611,0.000269,2]
[331954416,1720894249888,-152.76264877,0.00026944,2]
[331954417,1720894249898,-152.94115716,0.00026969,2]
[331954418,1720894249908,-1000.0,0.00027,27]
[331954419,1720894249917,-500.0,0.00027123,2]
[331954420,1720894249927,-1325.4,0.00027123,2]
[331954421,1720894249936,-500.0,0.00027123,2]
[331954422,1720894249947,-673.59,0.00027123,2]
[331954423,1720894249956,-500.0,0.00027123,2]
[331954424,1720894249965,-10718.61,0.00027123,2]
[331954425,1720894249978,-1735.23,0.00027123,2]
[331954426,1720894249988,-581.01,0.00027123,2]
[331954427,1720894249997,-942.56,0.00027123,2]
[331954428,1720894250007,-163.8038411,0.00027123,2]
[331954429,1720894250016,-467.795338,0.00027195,2]
[331954430,1720894250025,-152.76264877,0.0002727,2]
[331954431,1720894250034,-500.0,0.00027397,2]
[331954432,1720894250045,-1325.4,0.00027397,2]
[331954433,1720894250057,-500.0,0.00027397,2]
[331954434,1720894250067,-673.59,0.00027397,2]
[331954435,1720894250079,-500.0,0.00027397,2]
[331954436,1720894250090,-10718.61,0.00027397,2]
[331954437,1720894250101,-1735.23,0.00027397,2]
[331954438,1720894250112,-581.01,0.00027397,2]
[331954439,1720894250123,-942.56,0.00027397,2]
[331954440,1720894250132,-241.74936296,0.00027397,2]
[331954441,1720894250141,-500.0,0.00027397,2]
[331954442,1720894250153,-171.442054,0.00027397,120]
[331954443,1720894250163,-175.48417072,0.000274,2]
[331954444,1720894250174,-152.76264877,0.00027488,2]
[331954445,1720894250183,-152.76264877,0.00027499,2]
[331954446,1720894250192,-170.79925196,0.00027534,2]
[331954447,1720894250202,-500.0,0.00027671,2]
[331954448,1720894250211,-1325.4,0.00027671,2]
[331954449,1720894250220,-500.0,0.00027671,2]
[331954450,1720894250230,-673.59,0.00027671,2]
[331954451,1720894250239,-159.21379321,0.00027671,2]
[331954452,1720894250248,-500.0,0.00027671,2]
[331954453,1720894250258,-10718.61,0.00027671,2]
[331954454,1720894250268,-1735.23,0.00027671,2]
[331954455,1720894250279,-581.01,0.00027671,2]
[331954456,1720894250289,-942.56,0.00027671,2]
[331954457,1720894250298,-174.5,0.00027741,2]
[331954458,1720894250308,-151.0,0.00027741,2]
[331954459,1720894250319,-500.0,0.00027945,2]
[331954460,1720894250330,-1325.4,0.00027945,2]
[331954461,1720894250340,-500.0,0.00027945,2]
[331954462,1720894250349,-673.59,0.00027945,2]
[331954463,1720894250359,-500.0,0.00027945,2]
[331954464,1720894250370,-10718.61,0.00027945,2]
[331954465,1720894250383,-1735.23,0.00027945,2]
[331954466,1720894250393,-581.01,0.00027945,2]
[331954467,1720894250403,-942.56,0.00027945,2]
[331954468,1720894250413,-159.21379321,0.00027952,2]
[331954469,1720894250425,-150.43466679,0.00027973,2]
[331954470,1720894250435,-197.44371632,0.00027999,2]
[331954471,1720894250447,-268.76209587,0.00028,2]
[331954472,1720894250459,-526.33889339,0.00028,2]
[331954473,1720894250469,-254.93947749,0.00028,30]
[331954474,1720894250481,-150.112233,0.00028,10]
[331954475,1720894250492,-600.14,0.00028219,2]
[331954476,1720894250503,-1325.4,0.00028219,2]
[331954477,1720894250512,-500.0,0.00028219,2]
[331954478,1720894250523,-673.59,0.00028219,2]
[331954479,1720894250532,-500.0,0.00028219,2]
[331954480,1720894250543,-10718.61,0.00028219,2]
[331954481,1720894250552,-1735.23,0.00028219,2]
[331954482,1720894250562,-581.01,0.00028219,2]
[331954483,1720894250572,-942.56,0.00028219,2]
[331954484,1720894250582,-152.76264877,0.00028277,2]
[331954485,1720894250592,-153.84315082,0.00028281,2]
[331954486,1720894250603,-1325.4,0.00028493,2]
[331954487,1720894250613,-593.08905499,0.00028493,2]
[331954488,1720894250622,-673.59,0.00028493,2]
[331954489,1720894250632,-189.47186112,0.00028493,2]
[331954490,1720894250641,-10718.61,0.00028493,2]
[331954491,1720894250653,-1735.23,0.00028493,2]
[331954492,1720894250663,-581.01,0.00028493,2]
[331954493,1720894250672,-942.56,0.00028493,2]
[331954494,1720894250681,-159.57839055,0.00028507,2]
[331954495,1720894250691,-152.76264877,0.00028511,2]
[331954496,1720894250701,-1504.61689972,0.00028577,2]
[331954497,1720894250710,-159.21379321,0.0002872,2]
[331954498,1720894250720,-317.30214599,0.00028766,2]
[331954499,1720894250729,-1325.4,0.00028767,2]
[331954500,1720894250739,-673.59,0.00028767,2]
[331954501,1720894250752,-10718.61,0.00028767,2]
[331954502,1720894250762,-1735.23,0.00028767,2]
[331954503,1720894250771,-581.01,0.00028767,2]
[331954504,1720894250781,-942.56,0.00028767,2]
[331954505,1720894250791,-157.97296639,0.00028782,2]
[331954506,1720894250800,-174.5,0.00028836,3]
[331954507,1720894250810,-151.0,0.00028836,3]
[331954508,1720894250821,-159.21379321,0.00028851,2]
[331954509,1720894250830,-789.9729549,0.000289,2]
[331954510,1720894250840,-1000.0,0.00029,29]
[331954511,1720894250849,-1325.4,0.00029041,2]
[331954512,1720894250858,-673.59,0.00029041,2]
[331954513,1720894250867,-10718.61,0.00029041,2]
[331954514,1720894250876,-1735.23,0.00029041,2]
[331954515,1720894250887,-581.01,0.00029041,2]
[331954516,1720894250897,-942.56,0.00029041,2]
[331954517,1720894250907,-159.57839055,0.00029055,2]
[331954518,1720894250916,-1325.4,0.00029315,2]
[331954519,1720894250926,-673.59,0.00029315,2]
[331954520,1720894250935,-10718.61,0.00029315,2]
[331954521,1720894250944,-1735.23,0.00029315,2]
[331954522,1720894250956,-581.01,0.00029315,2]
[331954523,1720894250965,-942.56,0.00029315,2]
[331954524,1720894250974,-159.21379321,0.00029327,2]
[331954525,1720894250984,-357.29744566,0.00029406,2]
[331954526,1720894250994,-159.21379321,0.00029416,2]
[331954527,1720894251003,-152.76264877,0.00029496,2]
[331954528,1720894251013,-1325.4,0.00029589,2]
[331954529,1720894251023,-673.59,0.00029589,2]
[331954530,1720894251032,-10718.61,0.00029589,2]
[331954531,1720894251042,-1735.23,0.00029589,2]
[331954532,1720894251052,-581.01,0.00029589,2]
[331954533,1720894251062,-942.56,0.00029589,2]
[331954534,1720894251071,-170.79925196,0.00029613,2]
[331954535,1720894251081,-152.76264877,0.00029776,2]
[331954536,1720894251090,-159.21379321,0.00029808,2]
[331954537,1720894251100,-357.29744566,0.00029861,2]
[331954538,1720894251109,-1325.4,0.00029863,2]
[331954539,1720894251119,-151.0,0.00029863,7]
[331954540,1720894251129,-151.0,0.00029863,7]
[331954541,1720894251138,-673.59,0.00029863,2]
[331954542,1720894251147,-151.0,0.00029863,7]
[331954543,1720894251157,-10718.61,0.00029863,2]
[331954544,1720894251166,-183.279346,0.00029863,7]
[331954545,1720894251175,-183.279346,0.00029863,7]
[331954546,1720894251185,-1735.23,0.00029863,2]
[331954547,1720894251196,-581.01,0.00029863,2]
[331954548,1720894251205,-942.56,0.00029863,2]
[331954549,1720894251216,-174.5,0.00029931,3]
[331954550,1720894251225,-151.0,0.00029931,3]
[331954551,1720894251235,-284.70994421,0.0003,3]
[331954552,1720894251245,-154.54409492,0.0003,4]
[331954553,1720894251254,-471.89162154,0.0003,4]
[331954554,1720894251264,-730.05403984,0.0003,2]
[331954555,1720894251274,-907.52129878,0.0003,30]
[331954556,1720894251283,-643.93924923,0.0003,4]
[331954557,1720894251293,-5614.25337699,0.0003,4]
[331954558,1720894251302,-154.59033561,0.0003,4]
[331954559,1720894251311,-238.454706,0.0003,7]
[331954560,1720894251392,-151.0,0.0003,7]
[331954561,1720894251404,-151.0,0.0003,7]
[331954562,1720894251414,-151.0,0.0003,7]
[331954563,1720894251423,-151.0,0.0003,7]